[Event "Czech Championship 2022"]
[Site "Usti nad Labem"]
[Date "2022.05.14"]
[Round "1.2"]
[White "Brejnik, Gustav"]
[Black "Babula, Vlastimil"]
[Result "1/2-1/2"]
[ECO "E15"]
[WhiteElo "2246"]
[BlackElo "2576"]
[Annotator "TA"]
[PlyCount "36"]
[EventDate "2022.05.12"]
[EventType "swiss"]
[EventCountry "CZE"]
[SourceTitle "playchess.com"]
[Source "ChessBase"]
[SourceQuality "1"]
[TimeControl "40/5400+30:1800+30"]

{[%evp 19,36,10,20,3,15,7,25,18,24,5,37,0,0,0,14,0,0,0,0]} 1. d4 {[%emt 0:00:04] Sagar Shah/CB Website} Nf6 {[%emt 0:00:11]} 2. c4 {[%emt 0:00:08]} e6 {[%emt 0:00:23]} 3. Nf3 {[%emt 0:00:32]} b6 {[%emt 0:00:52]} 4. g3 {[%emt 0:00:32]} Ba6 {[%emt 0:00:34]} 5. b3 {[%emt 0:00:21]} Bb4+ {[%emt 0:00:35]} 6. Bd2 {[%emt 0:00:14]} Be7 {[%emt 0:00:16]} 7. Nc3 {[%emt 0:00:43]} d5 {[%emt 0:00:54]} 8. cxd5 {[%emt 0:01:17]} exd5 {[%emt 0:00:28]} 9. Bg2 {[%emt 0:00:10]} O-O {[%emt 0:00:55]} 10. O-O {[%emt 0:00:14]} Re8 {[%emt 0:01:50]} 11. a3 {[%emt 0:00:15] E15: Queen's Indian: 4 g3 sidelines, 4 g3 Ba6 and 4 g3 Bb7 early deviations.} c5 {[%emt 0:11:01]} 12. dxc5 {[%emt 0:00:37]} bxc5 {[%emt 0:00:24]} 13. Ne5 {[%emt 0:01:21][%cal Oc3d5] White has an edge.} Bb7 {[%emt 0:03:09]} 14. Bf4 {[%emt 0:00:27] [#]} Bf8 $146 {[%emt 0:10:21]} ({Predecessor:} 14... Nbd7 15. Nc4 Nb6 16. Na5 Ba6 17. b4 cxb4 18. axb4 Bxb4 19. Nc6 Bxc3 20. Nxd8 Bxe2 {½-½ (36) Caruana,F (2794)-Karjakin,S (2760) Moscow 2016 CBM 172 [Sagar Shah/CB Website]}) 15. Nc4 {[%emt 0:16:11]} Bc6 $1 {[%emt 0:03:54] The position is equal.} 16. Ne5 {[%emt 0:13:49]} Bb7 {[%emt 0:03:19]} 17. Nc4 {[%emt 0:05:56]} Bc6 $1 {[%emt 0:06:30]} 18. Ne5 {[%emt 0:08:02]} Bb7 {[%emt 0:53:54] Not much happened in this game.  Weighted Error Value: White=0.11 (very precise) /Black=0.04 (flawless)} 1/2-1/2

[Event "Czech Championship 2022"]
[Site "Usti nad Labem"]
[Date "2022.05.14"]
[Round "1.3"]
[White "Hracek, Zbynek"]
[Black "Freisler, Pavel"]
[Result "1-0"]
[ECO "C66"]
[WhiteElo "2570"]
[BlackElo "2239"]
[Annotator "TA"]
[PlyCount "65"]
[EventDate "2022.05.12"]
[EventType "swiss"]
[EventCountry "CZE"]
[SourceTitle "playchess.com"]
[Source "ChessBase"]
[SourceQuality "1"]
[TimeControl "40/5400+30:1800+30"]

{[%evp 9,65,23,52,40,50,48,49,49,50,40,47,37,46,41,51,43,43,57,57,35,108,111,108,107,111,101,119,104,157,151,239,227,237,235,210,160,292,282,264,295,283,277,356,364,346,346,342,355,338,317,383,327,392,334,403,387,334,292]} 1. e4 {[%emt 0:00:04]} e5 {[%emt 0:00:05]} 2. Nf3 {[%emt 0:00:05]} Nc6 {[%emt 0:00:03]} 3. Bb5 {[%emt 0:00:19]} Nf6 {[%emt 0:00:25]} 4. d3 {[%emt 0:00:18][%cal Bd2d3,Bd3d4,Bd4d5][%mdl 32]} d6 {[%emt 0:02:09]} 5. O-O {[%emt 0:00:40]} g6 {[%emt 0:01:37]} 6. d4 {[%emt 0:00:43] Threatens to win with dxe5. C66: Ruy Lopez: Steinitz Defence.} Bd7 {[%emt 0:00:04]} 7. d5 {[%emt 0:00:15]} Ne7 {[%emt 0:00:57]} 8. Bxd7+ {[%emt 0:00:06] White is slightly better.} Qxd7 {[%emt 0:00:40]} 9. Re1 {[%emt 0:00:07]} Bg7 {[%emt 0:00:08]} 10. c4 {[%emt 0:00:04]} O-O {[%emt 0:00:42]} 11. Nc3 {[%emt 0:00:13]} h6 {[%emt 0:06:02]} 12. a4 {[%emt 0:00:19]} a5 {[%emt 0:17:37]} 13. c5 {[%emt 0:04:00]} Ne8 $1 {[%emt 0:01:43]} 14. Be3 {[%emt 0:14:33][%cal Bc1e3,Be3c5,Bc5a3][%mdl 32] [#]} dxc5 $146 {[%emt 0:12:10] Black is now going downhill.} (14... f5 $1 $14) ({Predecessor:} 14... f5 15. Qb3 Qc8 16. Rac1 Kh7 17. cxd6 Nxd6 18. Bc5 Qd7 19. exf5 Rxf5 20. Bxd6 cxd6 21. Nb5 Raf8 22. Rc7 Qd8 23. Nfd4 exd4 24. Rexe7 Rg8 25. Nxd4 Re5 26. Qxb7 {1-0 (26) Zhigalko,S (2639)-Vignesh,N (2411) Dubai 2017}) 15. Bxc5 $16 {[%emt 0:02:24]} Nd6 {[%emt 0:00:07]} 16. Rc1 {[%emt 0:02:21]} b6 {[%emt 0:18:41]} 17. Ba3 {[%emt 0:07:54]} Rfc8 {[%emt 0:06:29]} 18. Qd3 {[%emt 0:05:52]} f6 {[%emt 0:02:40]} (18... Rab8 $142) 19. Nd2 {[%emt 0:59:43] White is more active.} Bf8 {[%emt 0:12:56]} (19... Nf7 $16 {was necessary.} 20. Nc4 Rcb8) 20. Nc4 $18 {[%emt 0:00:00]} Nxc4 {[%emt 0:01:12]} 21. Qxc4 {[%emt 0:00:00]} Kg7 {[%emt 0:00:12]} 22. Qb3 {[%emt 0:00:00]} Rab8 {[%emt 0:02:28]} (22... c6 $16 {was called for.}) 23. Red1 {[%emt 0:00:00]} c5 {[%emt 0:02:18]} 24. dxc6 $1 {[%emt 0:00:00]} Qxc6 {[%emt 0:00:01] [#]} 25. Rd6 $1 {[%emt 0:00:00]} Qc4 {[%emt 0:00:11]} 26. Qxc4 {[%emt 0:00:00]} Rxc4 {[%emt 0:00:03]} 27. Rd7 {[%emt 0:00:00]} Re8 {[%emt 0:00:26]} 28. b3 {[%emt 0:00:00]} Rc6 {[%emt 0:01:21][%cal Oe8c8]} 29. Nd5 {[%emt 0:00:00] [#] Strongly threatening Rxc6.} Rxc1+ {[%emt 0:01:26]} 30. Bxc1 {[%emt 0:00:00] aiming for Ba3.} Kf7 {[%emt 0:01:34]} 31. Ba3 {[%emt 0:00:00]} f5 {[%emt 0:02:42]} 32. Rb7 {[%emt 0:00:00]} fxe4 {[%emt 0:00:18][%cal Oe8d8]} 33. Kf1 {[%emt 0:00:00] Weighted Error Value: White=0.04 (flawless) /Black=0.23 (precise)} ({Not} 33. Nxb6 Rd8 34. h3 Ke6 $16) 1-0

[Event "Czech Championship 2022"]
[Site "Usti nad Labem"]
[Date "2022.05.14"]
[Round "1.4"]
[White "Nytra, Ondrej"]
[Black "Plat, Vojtech"]
[Result "0-1"]
[ECO "C41"]
[WhiteElo "2219"]
[BlackElo "2547"]
[Annotator "TA"]
[PlyCount "76"]
[EventDate "2022.05.12"]
[EventType "swiss"]
[EventCountry "CZE"]
[SourceTitle "playchess.com"]
[Source "ChessBase"]
[SourceQuality "1"]
[TimeControl "40/5400+30:1800+30"]

{[%evp 12,76,37,8,20,-1,11,4,29,17,7,13,31,0,0,0,0,-66,-68,-54,-62,-69,-68,-62,-33,-37,-44,-43,-44,-246,-229,-234,-233,-227,-259,-272,-282,-270,-262,-256,-232,-253,-221,-316,-316,-295,-183,-320,-293,-392,-359,-472,-322,-1033,-994,-1185,-1149,-1582,-1585,-29988,-29983,-29988,-29987,-29994,-29995,-29997,-29998]} 1. e4 {[%emt 0:00:03]} e5 {[%emt 0:00:29]} 2. Nf3 {[%emt 0:00:05]} d6 {[%emt 0:00:04]} 3. Nc3 {[%emt 0:02:24]} Nf6 {[%emt 0:00:08]} 4. d4 {[%emt 0:00:49]} exd4 {[%emt 0:00:05]} 5. Nxd4 {[%emt 0:00:11]} Be7 {[%emt 0:00:04]} 6. Bc4 {[%emt 0:01:00]} O-O {[%emt 0:00:06]} 7. f3 {[%emt 0:03:24]} Nc6 {[%emt 0:00:51] C41: Philidor Defence.} 8. a4 {[%emt 0:06:13]} Ne5 {[%emt 0:06:38]} 9. Ba2 {[%emt 0:01:22] [#]} c6 $146 {[%emt 0:00:08] The position is equal.} ({Predecessor:} 9... Bd7 10. O-O c5 11. Ndb5 Bc6 12. Nd5 Nxd5 13. Bxd5 a6 14. Nc3 Qc7 15. g4 Kh8 {1-0 (55) Morros Faura,R (2242)-Zaiats,V (2048) Santa Eulalia de Roncana 2010}) 10. Be3 {[%emt 0:01:09]} d5 {[%emt 0:00:27]} 11. exd5 {[%emt 0:02:05]} cxd5 {[%emt 0:01:13]} 12. Qe2 {[%emt 0:03:37]} Re8 {[%emt 0:04:27][%cal Of6g4]} 13. O-O {[%emt 0:05:37]} Bc5 {[%emt 0:04:12]} 14. Qb5 {[%emt 0:13:13] Prevents Nc6.} (14. Qf2 $11) 14... b6 $15 {[%emt 0:06:51] [#] White must now prevent ...Bd7.} 15. Nxd5 {[%emt 0:16:32]} Bb7 {[%emt 0:01:07]} 16. Nxf6+ {[%emt 0:01:24]} Qxf6 {[%emt 0:00:04]} 17. Bf2 {[%emt 0:03:03]} Rad8 {[%emt 0:02:05][%mdl 1024] Hoping for ...a6. Black has compensation.} ({Don't play} 17... Bxd4 18. Bxd4 Nxf3+ 19. Rxf3 Qxd4+ 20. Rf2 $11) 18. c3 {[%emt 0:02:25]} a6 $36 {[%emt 0:01:52][%mdl 2048] Black has good play.} 19. Qb3 {[%emt 0:00:09]} Nd3 {[%emt 0:00:18][%cal Be5d3,Bd3b2,Bb2a4,Ba4c5][%mdl 32]} 20. Rad1 $2 {[%emt 0:03:13] This costs White the game.} (20. Qc2 $15 Nxf2 21. Rxf2) 20... Bd5 $19 {[%emt 0:02:51]} 21. Qxd5 {[%emt 0:06:20]} Rxd5 {[%emt 0:00:13]} 22. Bxd5 {[%emt 0:00:02]} Nxb2 {[%emt 0:00:34]} 23. Rd2 {[%emt 0:01:16]} Nxa4 {[%emt 0:02:34]} 24. Bc6 {[%emt 0:00:10] [#]} Bxd4 $1 {[%emt 0:00:04]} 25. Bxe8 {[%emt 0:03:36]} Bxf2+ {[%emt 0:00:07]} ({Less strong is} 25... Bxc3 26. Rd7 $14) 26. Rfxf2 {[%emt 0:03:08]} Nc5 {[%emt 0:02:50]} ({Not} 26... Nxc3 27. Rd7 $11) 27. c4 {[%emt 0:04:09]} (27. Rc2 $142) 27... Qa1+ {[%emt 0:04:10]} 28. Rf1 {[%emt 0:00:24]} Qe5 {[%emt 0:00:28]} 29. Rd8 {[%emt 0:02:47]} (29. Rfd1 $142) 29... g6 {[%emt 0:01:08]} 30. Bc6+ {[%emt 0:01:53]} Kg7 {[%emt 0:00:03]} 31. Bd5 {[%emt 0:00:04]} b5 {[%emt 0:02:08][%cal Bb6b5,Bb5c4,Bc4c3,Bc3c2,Bc2c1][%mdl 32]} 32. g3 $2 {[%emt 0:09:41]} (32. cxb5 Qf6 33. Re8 Qd4+ 34. Kh1 Qxd5 35. bxa6 Nxa6 36. Re2) 32... Qd4+ {[%emt 0:00:41]} 33. Kh1 {[%emt 0:01:17]} bxc4 {[%emt 0:00:07]} 34. Re1 {[%emt 0:00:03]} c3 {[%emt 0:01:59] Threatens to win with ...c2.} 35. Re7 {[%emt 0:04:37]} c2 {[%emt 0:00:04] Black mates.} 36. Rxf7+ {[%emt 0:00:32]} Kh6 {[%emt 0:00:01]} 37. f4 {[%emt 0:00:29]} Qf2 {[%emt 0:00:36][%cal Rc2c1]} 38. Bc4 {[%emt 0:00:33]} c1=R+ {[%emt 0:00:09] Weighted Error Value: White=0.93/Black=0.13 (very precise)} 0-1

[Event "Czech Championship 2022"]
[Site "Usti nad Labem"]
[Date "2022.05.14"]
[Round "1.5"]
[White "Stocek, Jiri"]
[Black "Babula, Vlastimil jr"]
[Result "1-0"]
[ECO "D90"]
[WhiteElo "2533"]
[BlackElo "2576"]
[Annotator "TA"]
[PlyCount "59"]
[EventDate "2022.05.12"]
[EventType "swiss"]
[EventCountry "CZE"]
[SourceTitle "playchess.com"]
[Source "ChessBase"]
[SourceQuality "1"]
[TimeControl "40/5400+30:1800+30"]

{[%evp 10,59,46,8,4,0,0,0,0,5,14,13,20,18,25,27,29,26,85,17,21,22,62,32,25,11,8,14,149,68,74,82,74,81,61,50,78,70,99,94,443,430,581,537,5414,5414,5397,5381,5265,2183,29973,2194]} 1. d4 {[%emt 0:00:09]} Nf6 {[%emt 0:00:20]} 2. c4 {[%emt 0:00:13]} g6 {[%emt 0:00:23]} 3. Nc3 {[%emt 0:00:20]} d5 {[%emt 0:00:36]} 4. Nf3 {[%emt 0:04:20]} Bg7 {[%emt 0:00:45]} 5. cxd5 {[%emt 0:03:26]} Nxd5 {[%emt 0:00:20]} 6. Bg5 {[%emt 0:00:05]} c5 {[%emt 0:06:10] D90: Grünfeld: 4 Nf3 Bg7 sidelines.} 7. Rc1 {[%emt 0:04:11]} Nxc3 {[%emt 0:02:07]} 8. bxc3 {[%emt 0:00:05]} (8. Rxc3 cxd4 9. Rc1 h6 $17) 8... O-O {[%emt 0:11:55] The position is equal.} 9. e4 {[%emt 0:10:41]} cxd4 {[%emt 0:04:39]} 10. cxd4 {[%emt 0:03:23]} Bg4 {[%emt 0:02:31]} 11. d5 {[%emt 0:06:58]} Qd6 {[%emt 0:19:51]} 12. Be2 {[%emt 0:09:52]} Nd7 {[%emt 0:04:59]} 13. O-O {[%emt 0:04:43] [#]} f5 $146 {[%emt 0:04:30]} (13... Rac8 $11 {keeps the balance.}) ({Predecessor:} 13... Rac8 14. Qd2 Bxf3 15. Bxf3 e6 16. h3 h5 17. Rfe1 Rfe8 18. Be3 a6 19. Red1 Rxc1 20. Qxc1 exd5 21. exd5 {1-0 (30) Laurusas,T (2507)-Semjonovs,I (2383) Panevezys 2019}) 14. Nd2 {[%emt 0:08:13]} ({White should play} 14. Qb3 $16) 14... Bxe2 $1 $11 {[%emt 0:03:25]} 15. Qxe2 {[%emt 0:00:17]} Rae8 {[%emt 0:06:00]} 16. Nc4 {[%emt 0:14:52]} Qa6 {[%emt 0:00:14]} 17. exf5 {[%emt 0:07:49]} Rxf5 {[%emt 0:00:25]} 18. d6 {[%emt 0:00:24]} e5 {[%emt 0:07:31]} (18... Rxg5 $11 19. Qe6+ Kf8 20. Qxd7 Rc5) 19. Be7 {[%emt 0:04:53]} (19. Qd2 $16) 19... Bf6 $14 {[%emt 0:01:50]} 20. Qd2 $36 {[%emt 0:02:27][%mdl 2048] White is really pushing.} Bxe7 {[%emt 0:02:20]} 21. dxe7 {[%emt 0:01:16]} Rxe7 {[%emt 0:01:11]} 22. Nd6 {[%emt 0:00:11]} Rf8 {[%emt 0:01:25]} 23. Rc7 {[%emt 0:00:39] Rfc1 is the strong threat.} Rg7 {[%emt 0:04:34]} 24. Rfc1 {[%emt 0:00:50][%cal Bf1c1,Bc1c4,Bc4c7][%mdl 32] [#] Strongly threatening Qd5+. White is more active.} ({Much weaker is} 24. Nxb7 Nf6 25. Rxg7+ (25. Rfc1 Rxc7 26. Rxc7 Qb6 $11) 25... Kxg7 $11) 24... Qa4 $2 {[%emt 0:04:54][%mdl 8192] A mistake that costs the game.} (24... Nf6 $2 25. Rxg7+ Kh8 26. Rxb7 $18) (24... Qb6 $16 {is tougher.}) 25. R1c4 $18 {[%emt 0:01:40]} Qa3 {[%emt 0:02:27]} 26. Rxb7 {[%emt 0:01:34]} Nb6 {[%emt 0:05:52] Hoping for ...Rxb7.} 27. Rxg7+ {[%emt 0:01:13]} Kxg7 {[%emt 0:00:04]} 28. Rc7+ {[%emt 0:00:08]} ({Less strong is} 28. Rh4 h5 $14) 28... Kf6 {[%emt 0:00:08]} 29. Nb5 {[%emt 0:03:17]} Qa4 {[%emt 0:01:05]} 30. Qd6+ {[%emt 0:01:20] Weighted Error Value: White=0.15 (very precise) /Black=0.66} 1-0

[Event "Czech Championship 2022"]
[Site "Usti nad Labem"]
[Date "2022.05.14"]
[Round "1.6"]
[White "Buchcar, Tomas"]
[Black "Krejci, Jan"]
[Result "1-0"]
[ECO "C24"]
[WhiteElo "2183"]
[BlackElo "2520"]
[Annotator "TA"]
[PlyCount "81"]
[EventDate "2022.05.12"]
[EventType "swiss"]
[EventCountry "CZE"]
[SourceTitle "playchess.com"]
[Source "ChessBase"]
[SourceQuality "1"]
[TimeControl "40/5400+30:1800+30"]

{[%evp 9,81,9,21,-16,-11,-13,-12,-7,0,-16,0,0,20,12,22,15,24,-23,18,10,21,32,0,31,89,113,100,106,202,125,534,520,436,55,682,590,571,526,526,521,513,518,501,438,438,431,439,418,430,387,388,384,379,371,363,0,389,387,400,367,454,445,526,565,545,524,552,556,560,538,581,578,560,548]} 1. e4 {[%emt 0:00:03]} e5 {[%emt 0:00:32]} 2. Bc4 {[%emt 0:00:12]} Nf6 {[%emt 0:00:22]} 3. d3 {[%emt 0:00:06]} c6 {[%emt 0:00:46]} 4. Nf3 {[%emt 0:00:47]} d5 {[%emt 0:00:21]} 5. Bb3 {[%emt 0:00:09]} a5 {[%emt 0:00:43][%cal Ba7a5,Ba5a4][%mdl 32] Threatens to win with ...a4.} 6. a3 {[%emt 0:04:09] C24: Bishop's Opening: 2...Nf6.} ({But not} 6. Nxe5 $2 a4 7. Bxd5 cxd5 8. exd5 Nxd5 $19) 6... a4 {[%emt 0:11:45]} 7. Ba2 {[%emt 0:00:34]} Bd6 {[%emt 0:00:49]} 8. Nc3 {[%emt 0:01:01][%cal Re4d5] The position is equal.} Be6 {[%emt 0:03:26]} 9. Ng5 {[%emt 0:11:31]} Bg4 {[%emt 0:02:57][%cal Be6g4,Bg4h5,Bh5g6][%mdl 32]} 10. f3 {[%emt 0:01:18]} Bh5 {[%emt 0:01:06] [#]} 11. h4 $146 {[%emt 0:18:02]} ({Predecessor:} 11. Qe2 h6 12. Nh3 Nbd7 13. O-O Nb6 14. Kh1 O-O 15. Qf2 Bg6 16. Ne2 Nfd7 17. g4 {1-0 (39) Bortnyk,O (2598)-Petrosyan,M (2607) Chess.com INT 2020}) 11... h6 {[%emt 0:01:47]} 12. Nh3 {[%emt 0:00:16]} Nbd7 {[%emt 0:15:38]} 13. Qe2 {[%emt 0:10:30]} (13. g4 {is more appropriate.}) 13... Bg6 {[%emt 0:04:05] Strongly threatening ...Nh5.} (13... d4 $5 {[%cal Rd4c3]} 14. Nd1 Bg6 $15) 14. exd5 {[%emt 0:06:23]} Nh5 {[%emt 0:10:43][%cal Bf6h5,Bh5g3,Bg3h1][%mdl 32]} 15. dxc6 {[%emt 0:24:52]} Ng3 {[%emt 0:05:15]} 16. cxd7+ {[%emt 0:00:53]} Qxd7 {[%emt 0:03:57] [#]} (16... Kxd7 $14 17. Qe3 Nxh1) 17. Qe3 $1 $16 {[%emt 0:03:26][%cal Oh4h5] h5! is the strong threat. Black is on the road to losing.} Nxh1 {[%emt 0:00:03]} 18. Nf4 $1 $36 {[%emt 0:03:08][%mdl 2048] Black is under strong pressure.} Qf5 {[%emt 0:12:06]} (18... Bh7 $16) 19. Ne4 {[%emt 0:03:17]} Rd8 {[%emt 0:06:24][%mdl 8192] [#]} (19... Be7 $16 {is a better chance.}) 20. Qb6 $1 $18 {[%emt 0:04:00][%csl LRb7,LRd6]} Be7 {[%emt 0:01:28] [#]} 21. Nxg6 {[%emt 0:00:27]} ({White has to play} 21. g4 $1 $18 {[%cal Rg4f5]} Bxh4+ 22. Kf1 Ng3+ 23. Kg2) 21... fxg6 {[%emt 0:02:11][%mdl 8192]} (21... Qxg6 $14 22. Qxg6 (22. Qxb7 $2 Qxg2 23. Kd1 Kf8 $19) 22... fxg6) 22. Ke2 {[%emt 0:02:07]} Bxh4 {[%emt 0:01:25]} 23. g4 {[%emt 0:00:31]} Ng3+ {[%emt 0:04:35]} 24. Nxg3 {[%emt 0:00:13]} Qf6 {[%emt 0:00:01]} 25. Qb5+ {[%emt 0:00:52]} Qc6 {[%emt 0:00:06]} 26. Qxc6+ {[%emt 0:00:54]} bxc6 {[%emt 0:00:01]} 27. Ne4 {[%emt 0:00:09]} Be7 {[%emt 0:02:07]} 28. Bd2 {[%emt 0:00:23]} h5 {[%emt 0:00:17]} 29. Rh1 {[%emt 0:00:46]} Kd7 {[%emt 0:00:09]} 30. g5 {[%emt 0:00:16]} Rhf8 {[%emt 0:00:31]} 31. Bc3 {[%emt 0:01:47]} Rf5 {[%emt 0:00:06]} 32. Bd2 $2 {[%emt 0:01:01]} (32. Rd1 $18) 32... Rb8 $2 {[%emt 0:00:05][%mdl 8192]} (32... Rff8 $1 $11 33. Rd1 Rf5) 33. Bc1 {[%emt 0:00:19]} Rh8 {[%emt 0:00:25]} 34. c3 {[%emt 0:01:34][%cal Bc2c3,Bc3d4][%mdl 32]} h4 {[%emt 0:00:05]} 35. Rh3 {[%emt 0:00:30] White is clearly winning.} Rh5 {[%emt 0:00:06]} 36. Bb1 {[%emt 0:00:46]} Rf8 {[%emt 0:00:17]} 37. Bc2 {[%emt 0:00:11]} Ra8 {[%emt 0:00:01]} 38. d4 {[%emt 0:00:27]} exd4 {[%emt 0:00:27]} 39. cxd4 {[%emt 0:00:02]} Ra5 {[%emt 0:01:05]} 40. f4 {[%emt 0:00:08]} Rh8 {[%emt 0:00:33]} 41. Nc3 {[%emt 0:33:00] Weighted Error Value: White=0.40/Black=0.74} 1-0

[Event "Czech Championship 2022"]
[Site "Usti nad Labem"]
[Date "2022.05.14"]
[Round "1.7"]
[White "Zwardon, Vojtech"]
[Black "Jun, Rudolf"]
[Result "1-0"]
[ECO "A24"]
[WhiteElo "2482"]
[BlackElo "2183"]
[Annotator "TA"]
[PlyCount "65"]
[EventDate "2022.05.12"]
[EventType "swiss"]
[EventCountry "CZE"]
[SourceTitle "playchess.com"]
[Source "ChessBase"]
[SourceQuality "1"]
[TimeControl "40/5400+30:1800+30"]

{[%evp 11,65,24,30,24,34,15,18,0,0,20,12,1,13,18,28,23,74,54,37,45,51,40,33,23,33,35,51,18,27,22,45,47,88,28,16,0,0,0,434,333,450,444,463,457,453,434,445,451,363,297,603,592,581,569,717,712]} 1. c4 {[%emt 0:00:01]} Nf6 {[%emt 0:00:14]} 2. Nc3 {[%emt 0:00:03]} g6 {[%emt 0:00:19]} 3. g3 {[%emt 0:00:04]} Bg7 {[%emt 0:00:11]} 4. Bg2 {[%emt 0:00:02]} O-O {[%emt 0:00:23]} 5. d3 {[%emt 0:00:01]} c6 {[%emt 0:00:35]} 6. e4 {[%emt 0:00:05]} e5 {[%emt 0:00:37]} 7. Nge2 {[%emt 0:00:57] A24: English Opening vs King's Indian: Lines without ...Nc6.} Na6 {[%emt 0:01:47]} 8. h3 {[%emt 0:00:57]} Nc7 {[%emt 0:00:53]} 9. O-O {[%emt 0:00:55] The position is equal.} d5 {[%emt 0:01:37]} 10. exd5 {[%emt 0:03:11]} cxd5 {[%emt 0:00:15]} 11. Bg5 {[%emt 0:00:06] [#]} Be6 $146 {[%emt 0:06:01]} ({Predecessor:} 11... d4 12. Ne4 h6 13. Nxf6+ Bxf6 14. Bxh6 Re8 15. Qd2 Kh7 16. h4 Rh8 {1-0 (52) Gurevich,M (2634)-Markos,J (2557) Beijing 2008}) 12. Qb3 {[%emt 0:06:05]} dxc4 {[%emt 0:13:35]} 13. dxc4 {[%emt 0:00:55]} Rb8 {[%emt 0:00:29]} (13... b5 $1 $11) 14. Qa4 {[%emt 0:00:26]} Qd7 {[%emt 0:07:02]} 15. Qxd7 {[%emt 0:01:01]} Bxd7 {[%emt 0:04:12]} 16. Rfd1 {[%emt 0:01:01] [#] Hoping for Bxf6.} Be6 {[%emt 0:03:31]} 17. Nd5 {[%emt 0:00:54]} Ncxd5 {[%emt 0:05:20]} 18. cxd5 {[%emt 0:00:07]} Bd7 {[%emt 0:03:55]} 19. Rac1 {[%emt 0:01:42]} Rfc8 {[%emt 0:01:37] Inhibits Rc7.} 20. Nc3 {[%emt 0:01:21][%cal Be2c3,Bc3e4,Be4f6,Bf6d7,Bd7e5,Be5c6][%mdl 32]} Ne8 {[%emt 0:04:25]} 21. d6 {[%emt 0:05:18]} Bf8 {[%emt 0:44:02]} 22. Be7 {[%emt 1:16:18] 0x0.002d059e1fc1dp-1022s more active pieces.} (22. Ne4 $16) 22... b5 {[%emt 0:00:00]} 23. Ne4 {[%emt 0:00:00] Black must now prevent Nc5.} Rxc1 {[%emt 0:00:00]} 24. Rxc1 {[%emt 0:00:00] Strongly threatening Nc5.} Bh6 $2 {[%emt 0:00:00][%mdl 8192] [#]} (24... Rc8 $1 $11 {and Black has nothing to worry.} 25. Rd1 f5) 25. Rc7 $1 {[%emt 0:00:00][%mdl 512]} Nxc7 {[%emt 0:00:00]} (25... Be6 26. Rxa7) 26. Nf6+ {[%emt 0:00:00]} (26. dxc7 Rc8 $16) 26... Kh8 {[%emt 0:00:00][%cal Od7c8]} 27. Nxd7 {[%emt 0:00:00]} Na6 {[%emt 0:00:00]} 28. Nxe5 {[%emt 0:00:00]} Nc5 {[%emt 0:00:00]} 29. b4 {[%emt 0:00:00]} ({Less strong is} 29. d7 Nxd7 30. Nxd7 Rc8 $18) 29... Ne6 {[%emt 0:00:00]} 30. Bd5 {[%emt 0:00:00]} Kg8 {[%emt 0:00:00]} (30... Bf8 31. Nxf7+ Kg7 32. Bxe6 Bxe7) 31. Bxe6 {[%emt 0:00:00] White is clearly winning.} fxe6 {[%emt 0:00:00]} 32. d7 {[%emt 0:00:00]} Bg7 {[%emt 0:00:00]} 33. Nc6 {[%emt 0:00:00][%csl LRa7,LRb8] Weighted Error Value: White=0.16 (very precise) /Black=0.52} 1-0